Cogmind - Beta 14 @@@ ROGUE MODE // 2025.04.27 @ 23:20:14 Player: jumpy Result: Destroyed by G-47 Trooper with Particle Gun Performance ------------- Evolutions (3) 1500 Regions Visited (4) 800 Robots Destroyed (41) 205 Value Destroyed (1556) 1556 Prototype IDs (4) 80 Alien Tech Used (0) 0 Bonus (0) 0 TOTAL SCORE: 4141 Bonus ------- None Cogmind --------- Core Integrity 0/700 Matter 291/300 Energy 153/160 System Corruption 2% Temperature Cool (9) Movement Treading (145) Location -7/Factory Parts ------- > --- POWER (1) -------- Light Nuclear Core > --- PROPULSION (4) --- Advanced Treads Advanced Treads Advanced Treads Advanced Treads > --- UTILITY (5) ------ Armor Integrity Analyzer > --- WEAPON (3) ------- Cooled Particle Cannon Axe > --- INVENTORY (5) ---- Light Nuclear Core Armored Wheel Armored Wheel Remote Datajack Peak State ------------ > --- POWER ------------ Micro Nuclear Core > --- PROPULSION ------- Light Treads Medium Treads Medium Treads Medium Treads > --- UTILITY ---------- Small Storage Unit Improved Targeting Computer Armor Integrity Analyzer Insulated Plating > --- WEAPON ----------- Gatling Laser Improved Spread Laser Advanced Assault Cannon > --- INVENTORY -------- Light Treads Wheel Armored Wheel Armored Wheel Cooled Particle Cannon Advanced Assault Cannon Remote Datajack Axe [Rating: 42] Favorites ----------- Power Light Nuclear Core Engine Ion Engine Power Core Light Nuclear Core Propulsion Light Treads Treads Light Treads Wheel Wheel Utility Small Storage Unit Device Seismic Detector Storage Small Storage Unit Processor Improved Targeting Computer Protection Light Armor Plating Weapon Small Laser Energy Gun Small Laser Energy Cannon Cooled Particle Cannon Ballistic Gun Minigun Ballistic Cannon Advanced Assault Cannon Launcher Precision Grenade Launcher Slashing Weapon Axe Build | -11 -10 -9 -8 -7 ------- Run | Yrd Mat Mat Mat Fac Slots Evolved 6 | . . 2 2 2 Power . | . . . . . Propulsion 2 | . . . 2 . Utility 3 | . . 2 . 1 Weapon 1 | . . . . 1 Parts Attached 68 | 7 10 9 9 33 Power 10 | 1 1 . 1 7 Engine 3 | 1 1 . . 1 Core 7 | . . . 1 6 Reactor . | . . . . . Propulsion 31 | 2 5 3 6 15 Treads 30 | 2 5 3 6 14 Leg . | . . . . . Wheel 1 | . . . . 1 Hover . | . . . . . Flight . | . . . . . Utility 11 | 2 1 5 . 3 Device 5 | 1 1 2 . 1 Storage 1 | 1 . . . . Processor 2 | . . 1 . 1 Hackware . | . . . . . Protection 3 | . . 2 . 1 Artifact . | . . . . . Weapon 16 | 2 3 1 2 8 Energy Gun 8 | 2 3 . 1 2 Energy Cannon 3 | . . . . 3 Ballistic Gun 2 | . . 1 1 . Ballistic Cannon 1 | . . . . 1 Launcher 1 | . . . . 1 Special Weapon . | . . . . . Impact Weapon . | . . . . . Slashing Weapon 1 | . . . . 1 Piercing Weapon . | . . . . . Special Melee Weapon . | . . . . . Unidentified Prototypes 4 | . . 1 . 3 Parts Lost 25 | . . 2 3 20 Power 5 | . . . . 5 Propulsion 9 | . . . 1 8 Utility 6 | . . 1 2 3 Weapon 5 | . . 1 . 4 Highest Loss Streak 9 | . . 2 3 9 To Critical Strikes . | . . . . . Average Slot Usage (%) 78 | . 96 86 85 71 Engine 3 | . 13 11 4 . Core 4 | . . . 4 6 Treads 28 | . 27 22 35 28 Device 5 | . 13 11 3 2 Storage 7 | . 14 11 9 5 Processor 6 | . . 2 9 7 Protection 2 | . . 8 3 . Energy Gun 9 | . 26 10 6 6 Energy Cannon 1 | . . . . 2 Ballistic Gun 4 | . . 10 9 2 Ballistic Cannon 1 | . . . . 2 Peak Build Rating 42 | 7 7 13 16 42 Average Rating 19 | 5 6 10 15 26 On Entrance 8 | . 7 7 12 16 Naked Turns . | . . . . . Heaviest Build 28 | 14 14 19 18 28 Greatest Support 104 | 40 40 43 86 104 Greatest Overweight (x) 4 | . 4 . . 2 Average Overweight (x) . | . . . . . Largest Inventory Capacity 8 | 8 8 8 8 8 Average Capacity 7 | 7 8 8 8 7 Most Carried 8 | 5 7 8 8 8 Average Carried 6 | 3 6 7 6 6 Final Capacity 8 | 8 8 8 8 5 Final Carried 8 | 5 7 8 8 4 Class Distribution -------------------- 53% | Mutant 17% | Scavenger-Gunner 15% | Scavenger-Mutant 13% | Gunner Dominant Class ---------------- Mutant | -10/Materials Mutant | -9/Materials Scavenger-Mutant | -8/Materials Mutant | -7/Factory Resources | -11 -10 -9 -8 -7 ----------- Run | Yrd Mat Mat Mat Fac Matter Collected 1092 | 231 . 238 227 396 Remotely . | . . . . . Salvage Created 1555 | 124 27 346 325 733 Parts 91 | 11 6 21 10 43 Haulers Intercepted . | . . . . . Recyclers Shooed 1 | 1 . . . . Parts Field Recycled . | . . . . . Retrieved Matter . | . . . . . Parts Self-Destructed . | . . . . . Prevented . | . . . . . Kills | -11 -10 -9 -8 -7 ------- Run | Yrd Mat Mat Mat Fac Combat Hostiles Destroyed 36 | . 2 5 6 23 Melee 10 | . . . . 10 Guns 23 | . 2 5 6 10 Cannons 3 | . . . . 3 Classes Destroyed 6 | 2 1 1 1 1 Tunneler 3 | 3 . . . . Recycler 2 | 1 . 1 . . Swarmer 10 | . 2 . . 8 Grunt 12 | . . . 5 7 Sentry 11 | . . 5 1 5 Programmer 3 | . . . . 3 Best Kill Streak 4 | 2 2 2 3 4 Combat Bots Only 4 | . 2 2 3 4 Max Kills in Single Turn 1 | 1 1 1 1 1 Gunslinging . | . . . . . Exploded . | . . . . . Melee 1 | . . . . 1 Uniques/NPCs Destroyed . | . . . . . Combat | -11 -10 -9 -8 -7 -------- Run | Yrd Mat Mat Mat Fac Hostile Shots Fired 500 | . 18 28 48 406 Missed 128 | . 3 8 14 103 Damage Taken 4658 | . 106 364 567 3621 Core 808 | . 28 46 32 702 Absorbed by Shields . | . . . . . Core Remaining (%) 92 | 100 88 88 94 . Volleys Fired 121 | 9 6 17 34 55 Largest 3 | 2 2 2 2 3 Hottest 155 | 90 90 73 65 155 Shots Fired 199 | 18 12 30 63 76 Gun 182 | 18 12 30 63 59 Cannon 17 | . . . . 17 Launcher . | . . . . . Special . | . . . . . Kinetic 68 | . . 17 34 17 Thermal 131 | 18 12 13 29 59 Explosive . | . . . . . Electromagnetic . | . . . . . Robot Hit Streak 24 | 4 7 10 24 17 Robot Miss Streak 4 | 2 1 3 2 4 Penetration Max . | . . . . . Secondary Targets 2 | . . 1 1 . Max Gunslinging Chain 1 | . . 1 1 . Shots Hit Robots 188 | 11 9 22 56 90 Core Hits 107 | 5 2 11 20 69 Critical Kills . | . . . . . Critical Parts Destroyed 1 | . . . 1 . Critical Strikes 4 | . . . 1 3 Destroy 1 | . . . 1 . Sever 3 | . . . . 3 Melee Attacks 34 | . . . . 34 Impact . | . . . . . Slashing 34 | . . . . 34 Piercing . | . . . . . Sneak Attacks 2 | . . . . 2 Combat Hostiles 1 | . . . . 1 Follow-up Attacks . | . . . . . Damage Inflicted 3861 | 129 103 305 788 2536 Guns 2561 | 129 103 305 781 1243 Cannons 429 | . . . . 429 Explosions . | . . . . . Melee 847 | . . . . 847 Ramming 24 | . . . 7 17 Kinetic 1104 | . . 193 493 418 Thermal 1886 | 129 103 112 288 1254 Explosive . | . . . . . Electromagnetic . | . . . . . Impact . | . . . . . Slashing 847 | . . . . 847 Piercing . | . . . . . Highest Corruption 3 | . . . . 3 Average Corruption 2 | . . . . 2 Corruption Purged 5 | . . . . 5 Corruption Blocked . | . . . . . Effects 18 | . . . . 18 Message Errors 1 | . . . . 1 Matter Fused 4 | . . . . 4 Heat Flow Errors 4 | . . . . 4 Energy Discharges 4 | . . . . 4 Data Loss (minor) 1 | . . . . 1 Misfires 2 | . . . . 2 Weapon Failures 2 | . . . . 2 Overload Shots . | . . . . . Overflow Damage 55 | . . . . 55 Projectiles . | . . . . . Explosions . | . . . . . Melee 55 | . . . . 55 Knockbacks 1 | . . . . 1 Impact . | . . . . . Kinetic 1 | . . . . 1 Secondary . | . . . . . Self-Inflicted Damage . | . . . . . Shots . | . . . . . Rammed 8 | . . . 3 5 Targets Rammed 9 | . . . 3 6 Kicked . | . . . . . Crushed 1 | . . . . 1 Highest Temperature 388 | 124 90 72 62 388 Average Temperature 88 | 58 41 30 35 121 Received Heat Transfer 1257 | . . 135 306 816 Effects 8 | . . . . 8 Energy Bleed 2 | . . . . 2 Interference 6 | . . . . 6 Siege Activations . | . . . . . Robots Corrupted . | . . . . . Combat Hostiles . | . . . . . Parts Fried . | . . . . . Impact Corruptions . | . . . . . Robots Melted . | . . . . . Combat Hostiles . | . . . . . Parts Melted 4 | . . 1 1 2 Heat Transferred 3518 | 347 261 333 650 1927 Parts Sabotaged . | . . . . . Parts Stolen . | . . . . . Parts Stripped . | . . . . . Power Chain Reactions . | . . . . . Alert | -11 -10 -9 -8 -7 ------- Run | Yrd Mat Mat Mat Fac Peak Influence 333 | 20 108 226 236 333 Initial 45 | . 13 45 10 16 Average 80 | 7 49 98 135 75 Maximum Alert Level 1 | . . 1 1 1 Low Security (%) 87 | 100 100 91 78 84 Level 1 12 | . . 8 21 15 Level 2 . | . . . . . Level 3 . | . . . . . Level 4 . | . . . . . Level 5 . | . . . . . High Security . | . . . . . Max Security . | . . . . . Squads Dispatched 8 | . . . 1 7 Investigation . | . . . . . Extermination 2 | . . . . 2 Reinforcement 3 | . . . 1 2 Assault . | . . . . . Garrison 3 | . . . . 3 Intercept . | . . . . . Searches Triggered . | . . . . . Construction Impeded . | . . . . . Haulers Reinforced . | . . . . . Active Scanning Responses . | . . . . . Cargo Convoy Interrupts . | . . . . . Stealth | -11 -10 -9 -8 -7 --------- Run | Yrd Mat Mat Mat Fac Distress Signals 2 | . . 1 . 1 Communications Jammed . | . . . . . Distress Signals . | . . . . . Times Spotted 61 | . 5 6 14 36 Peak Tracking Total 5 | . 3 3 5 5 Tactical Retreats 4 | . 1 . 2 1 Traps | -11 -10 -9 -8 -7 ------- Run | Yrd Mat Mat Mat Fac Traps Triggered 8 | . 5 2 . 1 Indirectly . | . . . . . Trap Hack Attempts . | . . . . . Triggered . | . . . . . Disarmed . | . . . . . Reprogrammed . | . . . . . Reused . | . . . . . Traps Extracted . | . . . . . Installed . | . . . . . Triggered . | . . . . . Machines | -11 -10 -9 -8 -7 ---------- Run | Yrd Mat Mat Mat Fac Machines Disabled . | . . . . . Max in Single Turn . | . . . . . Machines Repaired . | . . . . . Machines Dismantled . | . . . . . Machines Sabotaged . | . . . . . Overloaded Fab Kills . | . . . . . Hacking | -11 -10 -9 -8 -7 --------- Run | Yrd Mat Mat Mat Fac Machines Accessed 8 | . 1 2 2 3 Terminals 6 | . 1 1 2 2 Fabricators 1 | . . . . 1 Repair Stations . | . . . . . Recycling Units . | . . . . . Scanalyzers 1 | . . 1 . . Garrison Access . | . . . . . Total Hacks 17 | . 5 4 3 5 Successful 4 | . 1 2 1 . Failed 13 | . 4 2 2 5 Catastrophic 5 | . 1 1 . 3 Database Lockouts . | . . . . . Manual 7 | . 1 2 1 3 Terminals 13 | . 5 2 3 3 Fabricators 2 | . . . . 2 Repair Stations . | . . . . . Recycling Units . | . . . . . Scanalyzers 2 | . . 2 . . Garrison Access . | . . . . . Terminal Hacks 2 | . 1 . 1 . Record 1 | . . . 1 . Robot Analysis 1 | . 1 . . . Fabricator Hacks . | . . . . . Repair Station Hacks . | . . . . . Recycling Unit Hacks . | . . . . . Scanalyzer 2 | . . 2 . . Insert Component 1 | . . 1 . . Analyze 1 | . . 1 . . Garrison Access Hacks . | . . . . . Unauthorized Hacks . | . . . . . Terminals . | . . . . . Fabricators . | . . . . . Repair Stations . | . . . . . Recycling Units . | . . . . . Scanalyzers . | . . . . . Garrison Access . | . . . . . Data Cores Recovered . | . . . . . Used . | . . . . . Hacking Detections 7 | . 1 2 1 3 Full Trace Events . | . . . . . Feedback Events . | . . . . . Feedback Blocked . | . . . . . Robot Schematics Acquired . | . . . . . Robots Built . | . . . . . Authchips . | . . . . . Time . | . . . . . Total Robot Build Rating . | . . . . . Part Schematics Acquired 1 | . . 1 . . Parts Built . | . . . . . Authchips . | . . . . . Time . | . . . . . Total Part Build Rating . | . . . . . Parts Repaired . | . . . . . Time . | . . . . . Parts Recycled . | . . . . . Recycled Matter . | . . . . . Retrieved Matter . | . . . . . Retrieved Components . | . . . . . Parts Scanalyzed 1 | . . 1 . . Part Schematics Acquired 1 | . . 1 . . Parts Damaged . | . . . . . Bothacking | -11 -10 -9 -8 -7 ------------ Run | Yrd Mat Mat Mat Fac Used RIF Installer . | . . . . . Robots Hacked . | . . . . . Non-combat . | . . . . . Combat . | . . . . . Robot Hacks Applied . | . . . . . Relay Couplers Released . | . . . . . Fabnet Peak Effective % . | . . . . . Robots Rewired . | . . . . . Allies Hacked . | . . . . . Hacks Repelled . | . . . . . Allies | -11 -10 -9 -8 -7 -------- Run | Yrd Mat Mat Mat Fac Total Allies . | . . . . . Largest Group . | . . . . . Highest-Rated Group . | . . . . . Highest-Rated Ally . | . . . . . Total Orders . | . . . . . Ally Attacks . | . . . . . Total Damage . | . . . . . Kills . | . . . . . Allies Corrupted . | . . . . . Allies Melted . | . . . . . Intel | -11 -10 -9 -8 -7 ------- Run | Yrd Mat Mat Mat Fac Robot Analysis Total 1 | . 1 . . . Derelict Logs Recovered . | . . . . . Drone Launches . | . . . . . Drone Recoveries . | . . . . . Exploration | -11 -10 -9 -8 -7 ------------- Run | Yrd Mat Mat Mat Fac Turns Passed 3080 | 150 310 425 423 1772 Spaces Moved 1529 | 75 170 204 182 898 Core 35 | 10 2 . . 23 Treads 1492 | 65 168 204 182 873 Legs . | . . . . . Wheels 2 | . . . . 2 Hover . | . . . . . Flight . | . . . . . Fastest Speed 50 | 50 160 160 160 50 Average Speed 157 | 145 161 160 160 155 Slowest Speed 250 | 160 250 160 160 160 Overloaded Moves . | . . . . . Propulsion Burnouts . | . . . . . Robots Hopped . | . . . . . Cave-ins Triggered . | . . . . . Exploration Rate (%) 20 | 8 32 20 18 26 Regions Visited 4 Branch Regions . Pre-discovered Areas . | . . . . . Known Exits Taken . | . . . . . Unknown Exits Taken 4 | 1 1 1 1 . Scrap Searched . | . . . . . Spaces Dug . | . . . . . Terrain Destroyed 1 | . . . . 1 Melee . | . . . . . Projectile 1 | . . . . 1 AOE . | . . . . . Terrain Rammed . | . . . . . Walls Destroyed . | . . . . . Machines Disabled . | . . . . . Actions | -11 -10 -9 -8 -7 --------- Run | Yrd Mat Mat Mat Fac Total 1942 | 95 189 277 253 1128 Wait 128 | . 2 32 20 74 Move 1525 | 74 169 203 181 898 Hop . | . . . . . Pick Up 30 | 5 2 8 3 12 Fast Attach 33 | 7 10 1 . 15 Attach 16 | . . 3 4 9 Detach 2 | . . 1 . 1 Swap 19 | . . 5 5 9 Drop 25 | . . 7 3 15 Fire 121 | 9 6 17 34 55 Melee 34 | . . . . 34 Ram . | . . . . . Kick . | . . . . . Crush 9 | . . . 3 6 Escape Stasis . | . . . . . Rewire . | . . . . . Trap . | . . . . . Miscellaneous . | . . . . . Route ------- -11/Scrapyard -10/Materials -9/Materials (discovered 2 exits: *Mat / [*Min]) -8/Materials (discovered 2 exits: *Fac / [*Sto]) -7/Factory (discovered 1 exit: [*Fac]) History --------- Turn | Location | Event 4 | -11/Scrapyard | Discovered new exit (range 16) 151 | -11/Scrapyard | Entered Materials 304 | -10/Materials | Build established: Mutant 340 | -10/Materials | Discovered new exit (range 16) 461 | -10/Materials | Entered another Materials area 461 | -9/Materials | Evolved 2 slots: Utility x2 785 | -9/Materials | Discovered new exit (range 10) 863 | -9/Materials | Discovered new exit (range 15) 886 | -9/Materials | Entered another Materials area 886 | -8/Materials | Evolved 2 slots: Propulsion x2 1103 | -8/Materials | Lost 3 parts (1n2u) 1157 | -8/Materials | Discovered new exit (range 7) 1174 | -8/Materials | Discovered new exit (range 8) 1309 | -8/Materials | Entered Factory 1309 | -7/Factory | Evolved 2 slots: Utility x1, Weapon x1 1686 | -7/Factory | Build established: Scavenger-Gunner 1799 | -7/Factory | Discovered new exit (range 9) 2595 | -7/Factory | Garrison activated, responded to threat 2676 | -7/Factory | Lost 4 parts (1p1n1u1w) 2712 | -7/Factory | Core integrity fell below 50% 2737 | -7/Factory | Lost 9 parts (1p4n2u2w) 2828 | -7/Factory | Core integrity fell below 20% 2945 | -7/Factory | Build established: Mutant 3081 | -7/Factory | Destroyed by G-47 Trooper with Particle Gun Last Messages --------------- 02885_ Dropped Adv. Treads. 02891_ System corrupted: Heat flow error (+203). 02910_ R-06 Scavenger collects Adv. Treads. 02912_ K-01 Serf cleans the Power Conduit. 02915_ Acquired Lgt. Nuclear Core. 02918_ Dropped Lgt. Nuclear Core. 02921_ Acquired 26 matter. 02924_ Dropped Adv. Treads. 02924_ Acquired Lgt. Nuclear Core. 02924_ R-06 Scavenger collects Imp. Heat Sink. 02928_ R-06 Scavenger collects Adv. Treads. 02929_ System corrupted: Matter fused (-5). 02946_ K-01 Serf cleans the Power Conduit. 02949_ System corrupted: Matter fused (-10). 02956_ K-01 Serf cleans the Power Conduit. 03031_ System corrupted: Energy discharge (-56). 03066_ Critical hit (Burn: +37). 03068_ G-47 Trooper destroyed. 03072_ Acquired 40 matter. 03073_ K-01 Serf collects debris. Map ----- +----------------------------------------------------+ | ### "" #?????????????????????????????????????????? | | + #?????????????????????????????????????????? | | # #?????????????????????????????????????????? | | # #?????????????????????????????????????????? | | #+######?????????????????????????????????????????? | | + #?????????????????????????????????????????? | | # #??????????##############?????????????????? | | # #??????????# #?????????????????? | | # #??????????# #?????????????????? | | # #??????????# +?????????????????? | | # #??????????# #?????????????????? | | + """" #??????????# #?????????????????? | | # """" #??????????# #?????????????????? | | # """" #??????????# #?????????????????? | | # """" #??????????# #?????????????????? | | # """" #??????????# #??"??????????????? | | # """" #??????????# #?? ???????????? | | # #??????????# #? """"???????????? | | ########??????????# =! #? ?????????? | | #?????????????????#######+###;## """"""""???????? | | #???????????????????# ## ??????? | | #???????????????????# g ??????? | | #???????????????????# #?????????? | | #???????????????????# #?????????? | | ????????????????????# #?????????? | | ????????????????????# @ k #?????????? | | ????????????????????# #?????????? | | ????????????????????# #?????????? | | ???????#????????????# ##########?????????? | | ?????! #????????????### r ###??????????????????? | | ### !! #??????????????# #?####???????????????? | | + ! #??????????????# #?! ??????????????? | | # # !#??????????????# #? """ ????????????? | | # #?? ############???# ## """ #???????????? | | # ###??## ???# ## """ #???????????? | | #???# """""""""?## ## #???????????? | | #???# + # """ #???????????? | | ##### """"""""" # # """ #???????????? | | = + # # """ #???????????? | | ##### """"""""" + # #???????????? | | #+###???# # + """ #???????????? | | ?????# # # """ #???????????? | | ?????# """ # #! """ #???????????? | | ????# G" # # #???????????? | | "" ????# """ # #########???????????? | | "" #???# # ?????? | | "" ############+##### ?????? | | ## ! # ##### "?????? | | "" ##= + ??????? | | ?? ## = ####### ??????? | +----------------------------------------------------+ Best States ------------- Heat Dissipation 41 Energy Generation 16 Energy Capacity 290 Matter Stores 300 Matter Capacity 300 Sight Range 16 Terrain Scan Density 10 Armor Coverage 150 Resistance: EM 15 Evasion (%) 50 Targeting Accuracy 6 Armor Integrity Analysis 30 Recoil Reduction 4 Item Schematics ----------------- Imp. Treads | -9/Materials | Scanalyzed Robot Schematics ------------------ None Fabricated ------------ Nothing Alien Tech Used ----------------- None Achievements -------------- None Challenges ------------ None Game ------ Seed NeutronBladeShovel Manual? 0 Play Time 00:20:39 Cumulative 56.6 hours Start 2025.04.27 @ 22:59:48 End 2025.04.27 @ 23:20:14 Sessions 1 Manual Loads 0 Difficulty Rogue Special Mode None Game No. 166 Rogue 166 Adventurer 0 Explorer 0 Win Type - Total 0 Types 0/0/0/0/0/0/0/0/0 Lore% 15 Gallery% 40 Achievement% 32 Wizard Run 0 Options --------- Layout 0 ASCII 0 Keyboard 0 Movement Numpad Keybinds 0 Fullscreen 2 Font 18/Terminus Map View 76x50 Zoom Use 0% Tactical HUD 1 Map Filters NONE Filters NONE Steam 1 RUN: 4f0f645a-bfc8-4011-b527-15eda1b08ba1